bitfinex/quotes_SOLUSD_20251030
["timestamp","ask_amount","ask_price","bid_price","bid_amount"]
[1761794791443,10.34,197.62,197.61,8.82160496]
[1761794791650,30.42,197.66,197.61,18.61043265]
[1761794791849,10.34,197.65,197.63,3.08113232]
[1761794792350,10.34,197.65,197.64,0.68]
[1761794793769,10.34,197.65,197.64,8.82083683]
[1761794794768,10.34,197.65,197.64,0.68]
[1761794795365,10.34,197.65,197.61,9.78882769]
[1761794795565,10.34,197.65,197.62,0.68]
[1761794795777,10.34,197.65,197.56,24.83233193]
[1761794795778,3.08113232,197.64,197.56,24.83233193]
[1761794795953,3.08113232,197.62,197.57,0.68]
[1761794796155,10.32,197.61,197.57,0.68]
[1761794796752,13.40113232,197.61,197.57,0.68]
[1761794799273,23.67313232,197.63,197.57,8.82260076]
[1761794799459,10.32,197.62,197.57,8.82260076]
[1761794799646,10.32,197.62,197.6,3.08113232]
[1761794800049,10.32,197.62,197.61,0.68]
[1761794802866,10.32,197.62,197.55,0.50620096]
[1761794802867,13.90113232,197.62,197.55,0.68]
[1761794803072,0.50586806,197.61,197.56,3.76113232]
[1761794803372,3.08113232,197.61,197.55,3.08113232]
[1761794803563,3.08113232,197.61,197.57,0.68]
[1761794803953,3.58700038,197.6,197.54,0.68]
[1761794804166,3.08113232,197.58,197.54,0.68]
[1761794804368,3.58700038,197.58,197.52,3.76113232]
[1761794804882,3.58700038,197.58,197.53,0.68]
[1761794806662,20.592,197.56,197.51,0.68]
[1761794806975,10.32,197.55,197.51,0.68]
[1761794807558,13.40113232,197.55,197.51,0.68]
[1761794808172,13.40113232,197.55,197.49,3.28113232]
[1761794808173,3.58700038,197.54,197.49,0.88]
[1761794808559,3.58700038,197.54,197.5,0.68]
[1761794810276,10.32,197.55,197.51,3.08113232]
[1761794810771,10.32,197.55,197.52,0.68]
[1761794813595,20.592,197.56,197.52,3.76113232]
[1761794813781,3.08113232,197.6,197.54,3.08113232]
[1761794814086,10.82586806,197.59,197.54,3.08113232]
[1761794814262,10.82586806,197.59,197.55,0.66]
[1761794815003,3.58700038,197.58,197.53,21.252]
[1761794815184,3.58700038,197.58,197.53,0.66]
[1761794815484,3.58700038,197.58,197.54,0.66]
[1761794815682,3.58700038,197.58,197.52,3.08113232]
[1761794815866,3.08113232,197.57,197.51,8.80415443]
[1761794816065,3.08113232,197.57,197.52,0.66]
[1761794816386,3.08113232,197.57,197.5,21.252]
[1761794816387,3.08113232,197.55,197.5,21.252]
[1761794816690,10.32,197.54,197.5,0.66]
[1761794816895,10.32,197.54,197.49,3.28113232]
[1761794817195,10.32,197.54,197.51,0.66]
[1761794820075,3.08113232,197.53,197.51,0.66]
[1761794820605,10.32,197.54,197.52,9.78882769]
[1761794820772,10.32,197.54,197.52,12.86996001]
[1761794820969,10.32,197.54,197.53,3.74113232]
[1761794821170,10.32,197.54,197.53,0.66]
[1761794821388,10.32,197.54,197.53,5.72252214]
[1761794821769,10.32,197.54,197.53,18.59248215]
[1761794821971,10.32,197.54,197.53,19.09873436]
[1761794822295,10.32,197.54,197.53,23.34673152]
[1761794822523,10.32,197.54,197.53,22.84047931]
[1761794822700,10.32,197.54,197.53,0.66]
[1761794825473,10.32,197.54,197.53,5.72252214]
[1761794825901,10.32,197.54,197.53,0.66]
[1761794826078,10.32,197.54,197.53,5.72252214]
[1761794826280,10.32,197.54,197.53,18.59248215]
[1761794826481,10.32,197.54,197.53,22.84047931]
[1761794826678,10.32,197.54,197.53,15.51134983]
[1761794828716,10.32,197.54,197.53,18.59248215]
[1761794830107,10.32,197.54,197.53,22.84047931]
[1761794830709,0.5,197.62,197.54,9.78882769]
[1761794830710,3.08113232,197.62,197.54,9.78882769]
[1761794830885,10.32,197.61,197.57,3.08113232]
[1761794831085,10.32,197.61,197.58,0.66]
[1761794832613,10.32,197.61,197.58,5.72115862]
[1761794832786,10.32,197.61,197.58,0.66]
[1761794833111,10.32,197.61,197.59,0.68]
[1761794834097,10.32,197.61,197.56,8.14274658]
[1761794834405,10.32,197.61,197.57,0.68]
[1761794835706,10.32,197.61,197.58,5.06124101]
[1761794836097,10.32,197.61,197.59,0.68]
[1761794840311,10.32,197.61,197.56,16.90279142]
[1761794840312,3.08113232,197.6,197.56,9.31019619]
[1761794840513,13.90113232,197.61,197.56,5.06167789]
[1761794840725,13.40113232,197.61,197.57,0.68]
[1761794841009,13.40113232,197.61,197.54,9.31076157]
[1761794841010,3.08113232,197.58,197.54,9.31076157]
[1761794841210,13.40113232,197.57,197.54,9.31076157]
[1761794841590,10.32,197.57,197.54,9.31076157]
[1761794842815,13.40113232,197.57,197.54,9.31076157]
[1761794843018,13.40113232,197.57,197.54,9.98076157]
[1761794843718,13.40113232,197.57,197.54,5.73224327]
[1761794844096,13.40113232,197.57,197.54,5.06224327]
[1761794844296,13.40113232,197.57,197.55,0.67]
[1761794844699,3.08113232,197.56,197.53,4.2485183]
[1761794844902,13.40113232,197.55,197.52,4.2485183]
[1761794845395,0.50586806,197.59,197.53,0.67]
[1761794845612,1.97197861,197.56,197.53,0.67]
[1761794845996,10.32,197.58,197.53,0.67]
[1761794846201,1.97197861,197.57,197.53,4.9185183]
[1761794846646,1.97197861,197.57,197.54,0.67]
[1761794846804,1.97197861,197.57,197.54,5.7321655]
[1761794847005,12.29197861,197.58,197.54,5.7321655]
[1761794847308,12.29197861,197.58,197.55,0.67]
[1761794848903,10.32,197.58,197.55,9.98050242]
[1761794849225,10.32,197.58,197.56,3.40109914]
[1761794849402,10.32,197.58,197.57,3.40109914]
[1761794850329,10.32,197.58,197.57,4.07109914]
[1761794852220,10.32,197.58,197.57,9.13259633]
[1761794853537,10.32,197.58,197.57,13.38111463]
[1761794854435,10.32,197.58,197.57,8.31961744]
[1761794854731,10.32,197.58,197.57,4.07109914]
[1761794854926,10.32,197.58,197.57,3.40109914]
[1761794857201,10.32,197.58,197.57,9.13259633]
[1761794857407,10.32,197.58,197.57,13.38111463]
[1761794858328,10.32,197.58,197.57,13.39134363]
[1761794859131,10.32,197.58,197.57,8.32984644]
[1761794859536,1.97197861,197.6,197.57,8.32984644]
[1761794859829,10.32,197.58,197.57,4.9287473]
[1761794860063,10.32,197.58,197.57,4.07727596]
[1761794860510,10.32,197.58,197.57,8.33602326]
[1761794862018,10.32,197.58,197.57,4.07727596]
[1761794863145,10.32,197.58,197.57,3.40727596]
[1761794864817,10.32,197.58,197.57,9.13877315]
[1761794866042,1.97197861,197.62,197.57,9.13877315]
[1761794866249,1.97197861,197.63,197.58,13.39990086]
[1761794866431,1.97197861,197.63,197.58,5.73118672]
[1761794866622,2.47197861,197.63,197.58,5.73118672]
[1761794867047,1.97197861,197.63,197.59,0.67]
[1761794867241,1.97197861,197.62,197.58,5.06118672]
[1761794867439,2.47197861,197.62,197.58,5.06118672]
[1761794867642,1.97197861,197.62,197.58,5.73118672]
[1761794868024,2.47784667,197.61,197.57,4.26143818]
[1761794868226,1.97197861,197.61,197.57,4.93143818]
[1761794868540,1.97197861,197.61,197.57,9.99292829]
[1761794869331,1.00586806,197.62,197.58,0.67]
[1761794869332,1.97197861,197.62,197.58,0.67]
[1761794870016,1.97197861,197.62,197.57,9.32292829]
[1761794870235,2.47197861,197.62,197.57,9.99292829]
[1761794870737,1.97197861,197.62,197.58,0.67]
[1761794872048,1.97197861,197.62,197.58,4.93143818]
[1761794872949,1.97197861,197.62,197.58,9.99267626]
[1761794873153,1.97197861,197.63,197.59,0.72]
[1761794873729,2.47197861,197.63,197.59,0.72]
[1761794874430,1.97197861,197.64,197.59,10.04227114]
[1761794874846,1.97197861,197.64,197.6,0.72]
[1761794875246,2.47197861,197.65,197.6,0.72]
[1761794876150,2.47197861,197.65,197.61,4.26143818]
[1761794876446,2.47197861,197.65,197.6,4.98143818]
[1761794876749,1.97197861,197.64,197.6,4.98143818]
[1761794877554,1.97197861,197.61,197.59,4.26143818]
[1761794877852,2.47784667,197.64,197.6,4.26143818]
[1761794878262,2.97784667,197.64,197.6,4.26143818]
[1761794878471,0.50586806,197.66,197.61,4.26143818]
[1761794878633,0.5,197.63,197.6,4.26143818]
[1761794878838,1.97197861,197.63,197.6,4.26143818]
[1761794879037,1.97197861,197.63,197.6,4.98143818]
[1761794882045,1.97197861,197.64,197.61,4.98143818]
[1761794882353,1.97197861,197.64,197.61,0.72]
[1761794885661,0.50586806,197.69,197.63,1.97197861]
[1761794885839,1.97197861,197.69,197.64,4.26143818]
[1761794886043,1.97197861,197.69,197.64,4.98143818]
[1761794886251,1.97197861,197.69,197.65,0.72]
[1761794886452,2.47784667,197.68,197.63,10.04123033]
[1761794886647,1.97197861,197.67,197.63,4.98143818]
[1761794887253,1.97197861,197.67,197.63,4.26143818]
[1761794887547,1.97197861,197.67,197.64,0.72]
[1761794888763,20.592,197.7,197.62,4.26143818]
[1761794888764,1.97197861,197.65,197.62,4.26143818]
[1761794888970,1.97197861,197.63,197.59,4.98143818]
[1761794889147,1.97197861,197.63,197.59,10.04231995]
[1761794889349,1.97197861,197.63,197.6,0.72]
[1761794889549,1.97197861,197.62,197.6,0.72]
[1761794889751,1.97197861,197.63,197.6,0.72]
[1761794890241,1.97197861,197.66,197.61,1.97197861]
[1761794890563,1.97197861,197.66,197.62,4.26143818]
[1761794890766,1.97197861,197.66,197.63,5.05996053]
[1761794890966,1.97197861,197.66,197.63,5.77996053]
[1761794891468,1.97197861,197.66,197.64,0.72]
[1761794892078,1.97197861,197.67,197.64,0.72]
[1761794892449,7.08611176,197.73,197.64,0.72]
[1761794892450,2.5345228,197.73,197.67,9.78882769]
[1761794892654,0.2,197.75,197.73,9.78882769]
[1761794892873,0.2,197.75,197.74,16.81795204]
[1761794893053,0.2,197.77,197.74,16.18384957]
[1761794893257,0.2,197.77,197.76,9.78882769]
[1761794893458,0.2,197.77,197.76,11.7608063]
[1761794893769,0.2,197.77,197.76,12.4508063]
[1761794893973,0.2,197.77,197.76,0.69]
[1761794894175,0.2,197.77,197.76,2.66197861]
[1761794894851,0.2,197.77,197.71,4.92838645]
[1761794895053,3.37784667,197.77,197.71,4.92838645]
[1761794895272,3.37784667,197.77,197.72,3.38669324]
[1761794895586,3.37784667,197.77,197.73,3.38669324]
[1761794895872,3.37784667,197.77,197.71,0.69]
[1761794895873,0.2,197.77,197.74,3.38669324]
[1761794896057,0.50586806,197.76,197.71,2.66197861]
[1761794896257,0.50586806,197.76,197.72,3.38472622]
[1761794896458,0.50586806,197.76,197.73,3.38472622]
[1761794896659,0.50586806,197.76,197.74,3.38472622]
[1761794896869,0.50586806,197.76,197.71,0.69]
[1761794897070,0.50586806,197.76,197.72,3.38416159]
[1761794897269,0.50586806,197.76,197.73,3.38416159]
[1761794897465,0.50586806,197.76,197.71,0.69]
[1761794897668,0.50586806,197.76,197.72,3.3828018]
[1761794897882,0.50586806,197.76,197.73,3.3828018]
[1761794898056,0.50586806,197.76,197.71,0.69]
[1761794898253,0.50586806,197.76,197.72,3.38156446]
[1761794898461,0.50586806,197.76,197.73,3.38156446]
[1761794898665,0.2,197.77,197.72,1.97197861]
[1761794898871,0.34348795,197.77,197.73,3.38119145]
[1761794899084,0.7,197.76,197.74,3.38119145]
[1761794899359,0.34348795,197.77,197.72,0.69]
[1761794899571,0.34348795,197.77,197.73,3.37972948]
[1761794899795,1.04348795,197.77,197.72,0.69]
[1761794899959,1.04348795,197.77,197.73,3.37870784]
[1761794900163,1.04348795,197.77,197.72,0.69]
[1761794900359,1.04348795,197.77,197.73,3.3768304]
[1761794900675,1.04348795,197.77,197.72,0.69]
[1761794900983,1.04348795,197.77,197.73,3.37698135]
[1761794901172,1.04348795,197.77,197.72,0.69]
[1761794901370,1.04348795,197.77,197.73,3.37685954]
[1761794901574,1.20586806,197.76,197.7,1.97197861]
[1761794901878,3.17784667,197.76,197.71,3.37714522]
[1761794902078,20.93548795,197.77,197.72,5.34912383]
[1761794902276,20.93548795,197.77,197.71,0.69]
[1761794902277,0.50586806,197.76,197.73,3.37714522]
[1761794902459,2.31546656,197.77,197.71,2.66197861]
[1761794902655,2.82133462,197.77,197.72,3.37644547]
[1761794902861,0.84935601,197.77,197.72,0.71]
[1761794903168,0.34348795,197.77,197.73,4.08667951]
[1761794903370,0.34348795,197.77,197.72,0.71]
[1761794903566,0.34348795,197.77,197.73,4.08610703]
[1761794903767,0.34348795,197.77,197.71,12.08797171]
[1761794903972,0.84935601,197.77,197.72,3.37624888]
[1761794904174,1.51935601,197.77,197.73,3.37624888]
[1761794904379,1.51935601,197.77,197.72,0.71]
[1761794904582,0.84935601,197.77,197.73,3.37583134]
[1761794904886,0.84935601,197.77,197.76,20.592]
[1761794904887,0.34348795,197.77,197.76,20.592]
[1761794905068,0.34348795,197.77,197.76,25.93791258]
[1761794905274,0.34348795,197.77,197.76,26.64791258]
[1761794905782,0.34348795,197.77,197.76,26.70122274]
[1761794906172,0.34348795,197.77,197.76,23.32911263]
[1761794906369,0.34348795,197.77,197.76,26.70062726]
[1761794907283,0.34348795,197.77,197.76,6.10862726]
[1761794908168,0.34348795,197.77,197.76,4.08151463]
[1761794909877,0.34348795,197.77,197.76,7.15462213]
[1761794910278,0.34348795,197.77,197.76,4.08151463]
[1761794910493,0.2,197.78,197.76,25.67885505]
[1761794910792,0.1,197.81,197.78,9.78882769]
[1761794910986,0.1,197.81,197.8,3.0731075]
[1761794911185,0.1,197.81,197.8,6.44462213]
[1761794911386,0.1,197.81,197.8,7.11462213]
[1761794911581,0.1,197.81,197.8,10.90772963]
[1761794911990,0.1,197.81,197.8,15.96334135]
[1761794912994,0.1,197.81,197.8,26.39989178]
[1761794914088,0.1,197.81,197.8,25.89433061]
[1761794914297,0.1,197.81,197.8,25.75216904]
[1761794923004,0.82,197.81,197.8,7.16462213]
[1761794923207,3.8931075,197.81,197.73,4.21513764]
[1761794923381,3.8931075,197.81,197.74,3.36455616]
[1761794923382,3.0731075,197.78,197.74,3.36455616]
[1761794923592,3.0731075,197.77,197.75,3.36639085]
[1761794923790,3.0731075,197.78,197.73,3.0731075]
[1761794923989,3.0731075,197.78,197.74,3.36639038]
[1761794924303,0.72,197.77,197.75,3.36639038]
[1761794924484,0.72,197.77,197.73,8.1304988]
[1761794924685,0.72,197.77,197.74,3.36751635]
[1761794924904,0.72,197.77,197.75,3.36751635]
[1761794925205,0.72,197.77,197.73,3.0731075]
[1761794925408,0.72,197.77,197.74,3.36787432]
[1761794925598,0.72,197.77,197.75,3.36773085]
[1761794925798,0.72,197.77,197.73,3.0731075]
[1761794926007,0.72,197.77,197.74,3.36665062]
[1761794926223,3.7931075,197.77,197.75,3.36725835]
[1761794926394,3.7931075,197.77,197.73,3.0731075]
[1761794926593,0.72,197.76,197.74,3.36814383]
[1761794926793,0.72,197.76,197.75,3.36814383]
[1761794926990,0.72,197.76,197.7,14.00396533]
[1761794926991,4.29897556,197.76,197.69,7.28824514]
[1761794927204,1.22586806,197.76,197.7,3.37060441]
[1761794927410,3.0731075,197.74,197.71,3.37060441]
[1761794927694,3.7931075,197.75,197.71,3.37060441]
[1761794927918,0.72,197.74,197.71,3.37060441]
[1761794928884,3.7931075,197.74,197.71,3.37060441]
[1761794929423,0.72,197.73,197.71,3.37060441]
[1761794930994,3.0731075,197.75,197.71,3.37060441]
[1761794931206,3.7931075,197.75,197.72,3.37060441]
[1761794931388,0.72,197.74,197.73,3.37060441]
[1761794931593,0.72,197.74,197.71,3.37060441]
[1761794931797,0.72,197.74,197.72,3.37060441]
[1761794932014,0.72,197.74,197.73,3.37060441]
[1761794932432,0.72,197.74,197.71,3.37060441]
[1761794932714,0.72,197.74,197.72,3.37060441]
[1761794933010,0.72,197.74,197.73,3.37060441]
[1761794933212,3.7931075,197.74,197.73,3.37060441]
[1761794933416,3.7931075,197.74,197.71,3.37060441]
[1761794933620,3.7931075,197.74,197.72,3.37060441]
[1761794933829,3.7931075,197.74,197.73,3.37060441]
[1761794934192,3.7931075,197.74,197.71,3.37060441]
[1761794934412,3.7931075,197.74,197.72,3.37060441]
[1761794934714,3.7931075,197.74,197.73,3.37060441]
[1761794935093,3.7931075,197.74,197.71,3.37060441]
[1761794935301,3.7931075,197.74,197.72,3.37060441]
[1761794935501,0.72,197.74,197.73,3.37060441]
[1761794935708,3.7531075,197.75,197.73,3.37060441]
[1761794935916,3.0731075,197.75,197.74,3.37060441]
[1761794936116,3.0731075,197.76,197.74,3.37060441]
[1761794936295,3.7531075,197.76,197.75,3.37060441]
[1761794936502,3.0731075,197.76,197.75,3.37060441]
[1761794937101,3.7531075,197.76,197.75,3.37060441]
[1761794938314,4.25897556,197.76,197.75,3.37060441]
[1761794938898,4.25897556,197.76,197.68,13.48811146]
[1761794939099,3.0731075,197.71,197.69,3.39009922]
[1761794939422,3.0731075,197.71,197.7,3.39009922]
[1761794940221,3.7531075,197.71,197.7,3.39009922]
[1761794940433,3.0731075,197.73,197.7,3.39009922]
[1761794940736,29.40376154,197.77,197.71,7.16320672]
[1761794941025,3.7531075,197.77,197.72,3.39009922]
[1761794941227,3.0731075,197.79,197.73,6.46320672]
[1761794941405,0.68,197.79,197.74,6.46320672]
[1761794941601,0.68,197.79,197.75,6.46320672]
[1761794941825,0.68,197.79,197.76,3.39009922]
[1761794942018,0.1,197.81,197.77,6.46320672]
[1761794942326,0.1,197.81,197.79,8.1289511]
[1761794942525,0.1,197.81,197.8,3.39009922]
[1761794943024,0.1,197.81,197.8,10.23631422]
[1761794943216,0.78,197.81,197.8,6.46320672]
[1761794943402,0.78,197.81,197.8,3.39009922]
[1761794943724,0.78,197.81,197.8,3.38558098]
[1761794947816,3.8531075,197.81,197.8,3.38558098]
[1761794948211,0.1,197.81,197.8,3.38558098]
[1761794948614,0.78,197.81,197.8,3.38558098]
[1761794951016,0.1,197.81,197.8,3.38558098]
[1761794955333,0.1,197.81,197.78,8.82919812]
[1761794956734,0.1,197.81,197.79,0.69]
[1761794956939,0.1,197.81,197.79,3.7631075]
[1761794957143,0.1,197.81,197.8,3.0731075]
[1761794957318,0.1,197.81,197.8,3.7631075]
[1761794960166,0.1,197.81,197.8,8.81871922]
[1761794961454,0.1,197.81,197.8,22.83402715]
[1761794961642,0.1,197.81,197.8,18.60754691]
[1761794961848,0.1,197.81,197.8,21.68065441]
[1761794962031,0.1,197.81,197.8,22.32837715]
[1761794962361,0.1,197.81,197.8,16.18216215]
[1761794962534,0.1,197.81,197.8,19.25526965]
[1761794962741,0.1,197.81,197.8,22.32837715]
[1761794965449,0.1,197.81,197.8,27.95543757]
[1761794966161,0.1,197.81,197.8,22.32837715]
[1761794966457,0.1,197.81,197.8,27.95504497]
[1761794966755,0.1,197.81,197.8,24.88193747]
[1761794967162,0.1,197.81,197.8,19.25526965]
[1761794967326,0.1,197.81,197.8,18.14707791]
[1761794967946,0.1,197.81,197.8,23.77374573]
[1761794968148,0.1,197.81,197.8,17.49935517]
[1761794968664,0.1,197.81,197.8,25.50117978]
[1761794969566,0.1,197.81,197.8,31.1278476]
[1761794969742,0.1,197.84,197.82,0.14216157]
[1761794970065,0.1,197.84,197.83,12.40138952]
[1761794970244,0.1,197.84,197.83,16.19131882]
[1761794970454,0.1,197.84,197.83,18.15623458]
[1761794975076,0.1,197.84,197.83,17.65075008]
[1761794978059,0.1,197.84,197.83,15.54367275]
[1761794978361,0.1,197.84,197.83,21.86361498]
[1761794979160,0.1,197.84,197.83,17.65075008]
[1761794979551,0.1,197.84,197.83,21.8646735]
[1761794980060,0.1,197.84,197.83,17.65075008]
[1761794980445,0.1,197.84,197.83,21.86552192]
[1761794981263,0.1,197.84,197.83,17.65075008]
[1761794982552,0.1,197.84,197.83,15.68583432]
[1761794982753,0.1,197.84,197.83,17.65075008]
[1761794985258,0.1,197.84,197.83,21.02717635]
[1761794986586,0.7,197.88,197.83,33.66428902]
[1761794986749,0.7,197.88,197.87,1.96491576]
[1761794986952,0.7,197.88,197.87,5.34134203]
[1761794988069,0.7,197.88,197.87,3.37642627]
[1761794988258,0.7,197.88,197.87,5.34134203]
[1761794989163,0.7,197.88,197.87,10.39516524]
[1761794993184,0.7,197.88,197.87,3.37642627]
[1761794997463,0.7,197.88,197.87,3.38619777]
[1761794998389,0.7,197.88,197.87,5.35111353]
[1761794998687,0.7,197.88,197.87,9.58386074]
[1761794999387,0.7,197.88,197.87,10.40493674]
[1761794999578,0.2,197.89,197.88,9.78882769]
[1761794999778,0.2,197.89,197.88,16.46745957]
[1761794999981,0.2,197.89,197.88,15.96210279]
[1761795000165,0.2,197.89,197.88,26.51658029]
[1761795001201,0.2,197.89,197.88,20.78301248]
[1761795001384,0.9,197.89,197.88,7.62171141]
[1761795001865,0.9,197.89,197.88,3.38619777]
[1761795002068,0.9,197.89,197.88,5.35111353]
[1761795002289,0.2,197.89,197.88,5.35111353]
[1761795002490,0.2,197.89,197.88,9.58662717]
[1761795002790,0.2,197.89,197.88,5.35111353]
[1761795003700,0.9,197.89,197.88,3.38619777]
[1761795003880,0.2,197.89,197.88,10.40468134]
[1761795004078,0.2,197.89,197.88,20.19350903]
[1761795004584,0.2,197.89,197.88,20.87350903]
[1761795004767,0.2,197.89,197.88,26.51658029]
[1761795004968,0.2,197.89,197.88,20.87350903]
[1761795005370,0.1,197.92,197.88,33.50742857]
[1761795005576,0.1,197.92,197.91,9.78882769]
[1761795005772,0.1,197.92,197.91,13.17502546]
[1761795006594,0.1,197.92,197.91,18.22782723]
[1761795006992,0.1,197.92,197.91,18.90782723]
[1761795007190,0.1,197.92,197.91,20.19274299]
[1761795007590,0.1,197.92,197.91,20.87274299]
[1761795007897,0.1,197.92,197.91,26.52145203]
[1761795008079,0.1,197.92,197.91,25.84145203]
[1761795008281,0.1,197.92,197.91,20.87274299]
[1761795008484,0.1,197.92,197.91,21.01490456]
[1761795008696,0.1,197.94,197.92,0.14216157]
[1761795008917,0.1,197.94,197.93,24.14880783]
[1761795009402,0.1,197.94,197.93,16.46733191]
[1761795009592,0.1,197.98,197.94,9.93098926]
[1761795009790,0.1,197.98,197.97,11.75374345]
[1761795009992,0.1,197.98,197.97,15.13994122]
[1761795010302,0.1,197.98,197.97,19.36869163]
[1761795010502,0.1,197.98,197.97,24.41209325]
[1761795010675,0.1,197.98,197.97,24.41209077]
[1761795010884,0.1,197.98,197.97,20.86593802]
[1761795011179,0.1,197.98,197.97,26.43547075]
[1761795011412,0.1,197.98,197.97,21.38420036]
[1761795011724,0.8,197.98,197.97,3.38092418]
[1761795012019,2.76491576,197.98,197.97,3.38092418]
[1761795012483,0.8,197.98,197.97,3.38092418]
[1761795015296,0.8,197.98,197.94,4.22467764]
[1761795015485,0.8,197.98,197.93,6.1895934]
[1761795015674,0.8,197.98,197.93,11.93181433]
[1761795016505,0.8,197.98,197.93,6.1895934]
[1761795016705,2.76491576,197.98,197.92,18.00378882]
[1761795017022,1.96491576,197.95,197.9,4.22467764]
[1761795017179,1.96491576,197.95,197.91,4.22467764]
[1761795017507,0.7,197.94,197.91,4.22467764]
[1761795018087,2.66491576,197.94,197.91,4.22467764]
[1761795018410,2.66491576,197.94,197.89,4.22467764]
[1761795018717,0.7,197.93,197.89,4.22467764]
[1761795019382,0.7,197.93,197.89,9.27796026]
[1761795019782,0.7,197.93,197.89,11.24287602]
[1761795020189,0.7,197.93,197.89,11.93287602]
[1761795020507,20.592,197.97,197.89,11.93287602]
[1761795020508,0.7,197.96,197.92,1.96491576]
[1761795020703,0.7,197.96,197.93,1.96491576]
[1761795021001,0.8,197.98,197.94,2.65491576]
[1761795021380,0.8,197.98,197.94,6.8795934]
[1761795022087,0.8,197.98,197.94,6.1895934]
[1761795022294,2.76491576,197.98,197.93,4.22467764]
[1761795022504,2.76491576,197.98,197.92,21.03087108]
[1761795022811,2.65491576,197.97,197.92,14.01350533]
[1761795022993,2.65491576,197.97,197.92,9.78882769]
[1761795023189,0.69,197.96,197.92,9.78882769]
[1761795025185,0.69,197.96,197.92,14.84132792]
[1761795025610,0.69,197.96,197.92,15.56132792]
[1761795025798,0.69,197.96,197.92,10.50882769]
[1761795027291,0.69,197.96,197.92,9.78882769]
[1761795028008,0.69,197.96,197.91,6.25004537]
[1761795028183,2.65491576,197.96,197.9,11.96261728]
[1761795028514,2.65491576,197.96,197.91,14.01350533]
[1761795028716,0.69,197.95,197.9,6.1895934]
[1761795028886,0.69,197.95,197.88,4.22467764]
[1761795028887,1.96491576,197.93,197.88,4.22467764]
[1761795029432,20.592,197.97,197.87,4.22467764]
[1761795029433,3.06946817,197.91,197.87,4.22467764]
[1761795029721,1.19586806,197.92,197.86,15.19333519]
[1761795029722,3.06946817,197.89,197.86,15.19333519]
[1761795029939,3.06946817,197.88,197.84,4.22467764]
[1761795030087,0.69,197.88,197.84,4.22467764]
[1761795030288,3.06946817,197.9,197.85,4.22467764]
[1761795030589,0.69,197.94,197.89,7.29414581]
[1761795031017,0.69,197.94,197.89,4.22467764]
[1761795031195,3.75946817,197.94,197.89,4.22467764]
[1761795031398,3.75946817,197.94,197.88,7.29414581]
[1761795031626,3.75946817,197.93,197.88,4.22467764]
[1761795031923,3.75946817,197.93,197.87,38.3949735]
[1761795032104,5.65691739,197.98,197.87,38.3949735]
[1761795032308,0.69,197.92,197.87,43.44871075]
[1761795033619,0.69,197.92,197.87,39.22403311]
[1761795033798,3.06946817,197.93,197.88,9.99796012]
[1761795034000,0.69,197.93,197.88,13.06742829]
[1761795035121,3.75946817,197.93,197.88,9.99796012]
[1761795035624,3.06946817,197.9,197.87,20.592]
[1761795035797,3.06946817,197.89,197.86,9.86231722]
[1761795036303,0.69,197.88,197.86,4.22444702]
[1761795036707,3.06946817,197.89,197.86,4.22444702]
[1761795036910,3.75946817,197.89,197.86,4.22444702]
[1761795037216,3.75946817,197.89,197.86,9.78882769]
[1761795037717,21.09786806,197.95,197.86,14.73327471]
[1761795037718,3.75946817,197.91,197.86,14.73327471]
[1761795037904,3.06946817,197.9,197.86,14.73327471]
[1761795038101,3.75946817,197.9,197.86,4.22444702]
[1761795038309,0.69,197.89,197.85,4.22444702]
[1761795038490,0.69,197.89,197.85,9.27877315]
[1761795039609,0.69,197.89,197.85,9.99877315]
[1761795039798,0.69,197.89,197.85,4.22444702]
[1761795040002,3.06946817,197.88,197.85,4.22444702]
[1761795040502,3.06946817,197.86,197.82,4.22444702]
[1761795040810,3.06946817,197.83,197.78,4.22444702]
[1761795041012,3.06946817,197.82,197.78,4.22444702]
[1761795041223,3.06946817,197.81,197.78,4.22444702]
[1761795041600,3.75946817,197.81,197.78,4.22444702]
[1761795042002,3.06946817,197.82,197.78,4.22444702]